{"text_format":"1","workbook":"xlsx","n_sheets":8,"sheets":["Cover page","Base-Case Scenario","Alternative-Case Scenario","BCS Calculation","ACS Calculation","Summary","Database","Additionnal Info"],"not_rendered":{"charts":1,"images":5,"macros":1,"external_links":0,"defined_names":13,"comments":7,"pivot_tables":0},"unopened":[],"bounds":{"document_bytes":16777216,"sheet_cells":100000,"rows_first":2000,"rows_last":500,"rows_between":2000,"halvings":0,"cell_chars":16384,"cell_head_chars":4096},"cells_cut":0,"cells_raw":0,"read":"whole","date_system":"1900"}

{"sheet":"Cover page","index":0,"n_rows":31,"n_cols":3,"rows_kept":31,"cut":false,"hidden":false,"merged":[[17,3,17,8],[18,3,18,8],[19,3,19,8],[20,3,20,8],[23,3,23,8],[22,3,22,8],[21,3,21,8],[35,0,35,8],[37,0,37,8],[38,0,38,8],[43,0,43,8],[42,0,42,8],[41,0,41,8],[40,0,40,8],[39,0,39,8]]}
["EcoConcrete Student Competition"]
["Calcualtion Tools"]
["Developped by ACI Sherbrooke Student Chapter"]
["Lastest version: "]
[]
[]
[]
[]
[]
[]
[]
[]
[]
[]
[]
[]
[]
[null,null,"School Name & Departement:"]
[null,null,"Team ID:"]
[null,null,"Team member names:"]
[]
[]
[]
[null,null,"Advisor Name:"]
[]
[]
[]
["See also","EcoConcrete Report"]
[null,"EcoConcrete Calculation tool Instructions"]
[null,"Ecoconcrete Scoring sheet"]
[null,"EcoConcrete MTDS example"]

{"sheet":"Base-Case Scenario","index":1,"n_rows":27,"n_cols":19,"rows_kept":27,"cut":false,"hidden":false,"merged":[[6,0,6,5],[6,6,6,9],[6,10,6,13],[6,14,6,18],[7,0,9,1],[7,2,9,2],[7,3,9,3],[7,4,8,5],[7,6,8,7],[7,8,8,9],[7,18,8,18],[7,14,8,14],[7,15,8,15],[7,16,8,16],[11,6,11,9],[21,6,21,13],[7,10,8,11],[7,12,8,12],[7,13,8,13]]}
["EcoConcrete Student Competition"]
["Designing Base-Case Scenario concrete",null,null,"Quick instructions","Definitions"]
["Developped by ACI Sherbrooke Student Chapter"]
[]
["Run calculations"]
["Last calculation update:",null,"2021-05-28T22:53:35",null,"Please fill in all the blue cells"]
["Base-Case concrete mix design",null,null,null,null,null,"Transformation inputs1",null,null,null,"Transport2",null,null,null,"Potential Environmental impacts"]
["Components",null,"Category","Subcategory","Amount",null,"Electricity",null,"Themal energy",null,"Road",null,"Rail","Waterway","Global warming","Carcinogenic","Ozone depletion",null,"Fossil fuel depletion"]
[null,null,null,null,null,null,null,null,null,null,null,null,null,null,null,null,null,"Ecotoxicity"]
[null,null,null,null,"kg/m³","%","kWh/kg","Region mix","MJ/kg","Region mix","km","Type","km","km","kg CO2 eq","CTUh","kg CFC-11 eq","CTUe","MJ"]
[null,"Cementitious Materials and fillers"]
[null,"Type 1 (GU) Portland Cement","Cement","Main-Product",400,{"$f":"E12/$E24","v":0.16260162601626016},"PRESET production inputs",null,null,null,20,null,null,null,362.53837823999999,4.2794400000000003E-6,1.4779264576E-5,487.68,137.29994088000001]
[null,"SCM","Granulated Blast-Furnace Slag","Co-Product",null,{"$f":"E13/E24","v":0},"PRESET production inputs"]
["-","(Add new ASCM/SCM here)"]
["+","Fibers"]
[null,"Fibers #1"]
["+","Aggregates"]
[null,"Sand","Fine aggregates","Crushed",900,null,"PRESET production inputs",null,null,null,null,null,null,null,2.1240000000000001,2.4569999999999998E-7,5.9669999999999994E-7,23.13,3.8070000000000004]
["-","5-10mm aggregate","Coarse aggregates","Crushed",1000,null,"PRESET production inputs",null,null,null,null,null,null,null,3.62,6.7299999999999995E-7,4.9099999999999994E-7,66.900000000000006,4.58]
[null,"Water"]
[null,"Water",null,"Tap water",160,null,"PRESET production inputs",null,null,null,null,null,null,null,2.6885784000000003E-2,2.1600000000000002E-8,3.2683982399999996E-9,28.64,2.64E-2]
["+","Admixtures"]
[null,"Admixtures #1"]
["1Amount required for the transformation of 1 kg of material",null,null,"Total amount",2460,0.16528925619834711,0,null,0,null,20,null,0,0,368.30926402400002,5.2197400000000004E-6,1.587023297424E-5,606.35,145.71334088]
["2Distance between the origin of the material and the batching plant (your university)",null,null,"Total binder content",400]
[null,null,null,"Water-to-binder ratio",0.4]
[null,null,null,"Cement substitution rate",0]

{"sheet":"Alternative-Case Scenario","index":2,"n_rows":31,"n_cols":19,"rows_kept":31,"cut":false,"hidden":false,"merged":[[11,6,11,9],[24,6,24,13],[7,10,8,11],[7,12,8,12],[7,13,8,13],[18,6,18,9],[19,6,19,9],[6,0,6,5],[6,6,6,9],[6,10,6,13],[6,14,6,18],[7,0,9,1],[7,2,9,2],[7,3,9,3],[7,4,8,5],[7,6,8,7],[7,8,8,9],[7,18,8,18],[7,14,8,14],[7,15,8,15],[7,16,8,16]]}
["EcoConcrete Student Competition"]
["Designing Alternative-Case Scenario concrete",null,null,"Quick instructions","Definitions"]
["Developped by ACI Sherbrooke Student Chapter"]
[]
["Run calculations"]
["Last calculation update:",null,"2021-05-28T22:53:40",null,"Please fill in all the blue cells"]
["Alternative-Case concrete mix design",null,null,null,null,null,"Transformation inputs1",null,null,null,"Transport2",null,null,null,"Potential Environmental impacts"]
["Components",null,"Category","Subcategory","Amount",null,"Electricity",null,"Themal energy",null,"Road",null,"Rail","Waterway","Global warming","Carcinogenic","Ozone depletion",null,"Fossil fuel depletion"]
[null,null,null,null,null,null,null,null,null,null,null,null,null,null,null,null,null,"Ecotoxicity"]
[null,null,null,null,"kg/m³","%","kWh/kg","Region mix","MJ/kg","Region mix","km","Type","km","km","kg CO2 eq","CTUh","kg CFC-11 eq","CTUe","MJ"]
["+","Cementitious Materials and fillers"]
[null,"Type 1 (GU) Portland Cement","Cement","Main-Product",240,{"$f":"E12/$E28","v":9.7560975609756101E-2},"PRESET production inputs",null,null,null,{"$f":"'Base-Case Scenario'!K12","v":20},null,{"$f":"'Base-Case Scenario'!M12","v":0},{"$f":"'Base-Case Scenario'!N12","v":0},217.52302694400001,2.5676640000000003E-6,8.8675587455999994E-6,292.60799999999995,82.379964528000002]
[null,"SCM","Granulated Blast-Furnace Slag","Co-Product",100,{"$f":"E13/E28","v":4.065040650406504E-2},"PRESET production inputs",null,null,null,null,null,null,null,39.200000000000003,1.04E-6,1.6341825904000002E-6,114.99999999999999,11.3]
["-","ASCM","Biomass ash","Co-Product",60]
["-","ASCM",null,"Co-Product"]
["+","Fibers"]
[null,"Fibers #1"]
["+","Aggregates"]
[null,"Sand","Fine aggregates","Crushed",900,null,"PRESET production inputs",null,null,null,{"$f":"'Base-Case Scenario'!K18","v":0},null,{"$f":"'Base-Case Scenario'!M18","v":0},{"$f":"'Base-Case Scenario'!N18","v":0},2.1240000000000001,2.4569999999999998E-7,5.9669999999999994E-7,23.13,3.8070000000000004]
[null,"5-10mm aggregate","Coarse aggregates","Crushed",1000,null,"PRESET production inputs",null,null,null,{"$f":"'Base-Case Scenario'!K19","v":0},null,{"$f":"'Base-Case Scenario'!M19","v":0},{"$f":"'Base-Case Scenario'!N19","v":0},3.62,6.7299999999999995E-7,4.9099999999999994E-7,66.900000000000006,4.58]
[null,"(Empty)","Fine aggregates","Natural"]
["+","Water"]
[null,"Water#1",null,"Tap water",160,null,"PRESET production inputs",null,null,null,{"$f":"'Base-Case Scenario'!K21","v":0},null,{"$f":"'Base-Case Scenario'!M21","v":0},{"$f":"'Base-Case Scenario'!N21","v":0},2.6885784000000003E-2,2.1600000000000002E-8,3.2683982399999996E-9,28.64,2.64E-2]
[null,"(Empty)"]
["+","Admixtures"]
[null,"Admixtures #1"]
["-","(Empty)"]
["1Amount required for the transformation of 1 kg of material",null,null,"Total amount",2460,0.13709677419354838,0,null,0,null,20,null,0,0,262.49391272800005,4.5479640000000002E-6,1.159270973424E-5,526.27799999999991,102.093364528]
["2Distance between the origin of the material and the batching plant  (your university)",null,null,"Total binder content",400]
[null,null,null,"Water-to-binder ratio",0.4]
[null,null,null,"Cement substitution rate",0.4]

{"sheet":"BCS Calculation","index":3,"n_rows":23,"n_cols":32,"rows_kept":23,"cut":false,"hidden":true,"merged":[[8,27,8,31],[8,17,8,21],[8,22,8,26],[7,2,7,6],[1,0,1,6],[9,0,9,1],[8,2,8,6],[8,7,8,11],[8,12,8,16],[3,2,3,6],[7,0,7,1],[8,0,8,1]]}
["Eco Concrete Student Competition"]
["Base-Case Scenario Calculation"]
["*Calculation model: TRACI 2.1"]
[]
[]
[]
["2021-05-28T22:53:35"]
["Last calculation update:"]
["2016-10-03T11:53:13",null,"Electricicity Consumption",null,null,null,null,"Thermal Energy",null,null,null,null,"Road transport",null,null,null,null,"Train transport",null,null,null,null,"Waterway transport",null,null,null,null,"TOTAL"]
["Components",null,"kg CO2 eq","kg SO2 eq","kg CFC-11 eq","kg N eq","MJ","kg CO2 eq","kg SO2 eq","kg CFC-11 eq","kg N eq","MJ","kg CO2 eq","kg SO2 eq","kg CFC-11 eq","kg N eq","MJ","kg CO2 eq","kg SO2 eq","kg CFC-11 eq","kg N eq","MJ","kg CO2 eq","kg SO2 eq","kg CFC-11 eq","kg N eq","MJ","kg CO2 eq","kg SO2 eq","kg CFC-11 eq","kg N eq","MJ"]
[null,"Cementitious Materials and fillers"]
[null,"Type 1 (GU) Portland Cement",361.2,4.2400000000000001E-6,1.4455497199999999E-5,476,134.4,null,null,null,null,null,1.3383782399999999,3.9440000000000001E-8,3.23767376E-7,11.68,2.8999408799999999,null,null,null,null,null,null,null,null,null,null,362.53837823999999,4.2794400000000003E-6,1.4779264576E-5,487.68,137.29994088000001]
[null,"SCM"]
[null,"(Add new ASCM/SCM here)"]
[null,"Fibers"]
[null,"Fibers #1"]
[null,"Aggregates"]
[null,"Sand",2.1240000000000001,2.4569999999999998E-7,5.9669999999999994E-7,23.13,3.8070000000000004,null,null,null,null,null,null,null,null,null,null,null,null,null,null,null,null,null,null,null,null,2.1240000000000001,2.4569999999999998E-7,5.9669999999999994E-7,23.13,3.8070000000000004]
[null,"5-10mm aggregate",3.62,6.7299999999999995E-7,4.9099999999999994E-7,66.900000000000006,4.58,null,null,null,null,null,null,null,null,null,null,null,null,null,null,null,null,null,null,null,null,3.62,6.7299999999999995E-7,4.9099999999999994E-7,66.900000000000006,4.58]
[null,"Water"]
[null,"Water",2.6885784000000003E-2,2.1600000000000002E-8,3.2683982399999996E-9,28.64,2.64E-2,null,null,null,null,null,null,null,null,null,null,null,null,null,null,null,null,null,null,null,null,2.6885784000000003E-2,2.1600000000000002E-8,3.2683982399999996E-9,28.64,2.64E-2]
[null,"Admixtures"]
[null,"Admixtures #1"]

{"sheet":"ACS Calculation","index":4,"n_rows":29,"n_cols":32,"rows_kept":29,"cut":false,"hidden":true,"merged":[[8,7,8,11],[8,12,8,16],[8,17,8,21],[8,22,8,26],[8,27,8,31],[9,0,9,1],[1,0,1,6],[3,2,3,6],[7,0,7,1],[7,2,7,6],[8,0,8,1],[8,2,8,6]]}
["Eco Concrete Student Competition"]
["Alternative case Scenario Calculation"]
["*Calculation model: TRACI 2.1"]
[]
[]
[]
["2021-05-28T22:53:40"]
["Last calculation update:"]
["2016-10-03T11:53:13",null,"Electricicity Consumption",null,null,null,null,"Thermal Energy",null,null,null,null,"Road transport",null,null,null,null,"Train transport",null,null,null,null,"Waterway transport",null,null,null,null,"TOTAL"]
["Components",null,"kg CO2 eq","kg SO2 eq","kg CFC-11 eq","kg N eq","MJ","kg CO2 eq","kg SO2 eq","kg CFC-11 eq","kg N eq","MJ","kg CO2 eq","kg SO2 eq","kg CFC-11 eq","kg N eq","MJ","kg CO2 eq","kg SO2 eq","kg CFC-11 eq","kg N eq","MJ","kg CO2 eq","kg SO2 eq","kg CFC-11 eq","kg N eq","MJ","kg CO2 eq","kg SO2 eq","kg CFC-11 eq","kg N eq","MJ"]
[null,"Cementitious Materials and fillers"]
[null,"Type 1 (GU) Portland Cement",216.72,2.5440000000000001E-6,8.6732983199999994E-6,285.59999999999997,80.64,null,null,null,null,null,0.80302694399999996,2.3663999999999999E-8,1.942604256E-7,7.008,1.739964528,0,0,0,0,0,0,0,0,0,0,217.52302694400001,2.5676640000000003E-6,8.8675587455999994E-6,292.60799999999995,82.379964528000002]
[null,"SCM",39.200000000000003,1.04E-6,1.6341825904000002E-6,114.99999999999999,11.3,null,null,null,null,null,null,null,null,null,null,null,null,null,null,null,null,null,null,null,null,39.200000000000003,1.04E-6,1.6341825904000002E-6,114.99999999999999,11.3]
[null,"ASCM"]
[null,"ASCM"]
[null,"Fibers"]
[null,"Fibers #1"]
[null,"Aggregates"]
[null,"Sand",2.1240000000000001,2.4569999999999998E-7,5.9669999999999994E-7,23.13,3.8070000000000004,null,null,null,null,null,0,0,0,0,0,0,0,0,0,0,0,0,0,0,0,2.1240000000000001,2.4569999999999998E-7,5.9669999999999994E-7,23.13,3.8070000000000004]
[null,"5-10mm aggregate",3.62,6.7299999999999995E-7,4.9099999999999994E-7,66.900000000000006,4.58,null,null,null,null,null,0,0,0,0,0,0,0,0,0,0,0,0,0,0,0,3.62,6.7299999999999995E-7,4.9099999999999994E-7,66.900000000000006,4.58]
[null,"(Empty)"]
[null,"Water"]
[null,"Water#1",2.6885784000000003E-2,2.1600000000000002E-8,3.2683982399999996E-9,28.64,2.64E-2,null,null,null,null,null,0,0,0,0,0,0,0,0,0,0,0,0,0,0,0,2.6885784000000003E-2,2.1600000000000002E-8,3.2683982399999996E-9,28.64,2.64E-2]
[null,"(Empty)"]
[null,"Admixtures"]
[null,"Admixtures #1"]
[null,"(Empty)"]
[null,null,null,null,null,null,null,null,null,null,null,null,null,null,null,null,null,null,null,null,null,null,null,null,null,null,null,null,null,null,3.3117797300000004E-7,4.8923791900000002E-4]
[null,null,null,null,null,null,null,null,null,null,null,null,null,null,null,null,null,null,null,null,null,null,null,null,null,null,null,null,null,null,3.3117797300000004E-7,4.8923791900000002E-4]

{"sheet":"Summary","index":5,"n_rows":37,"n_cols":8,"rows_kept":37,"cut":false,"hidden":false,"merged":[[35,1,35,2],[1,0,1,5],[30,0,30,5],[10,0,10,1],[9,0,9,5],[3,0,3,5],[18,0,18,5]]}
["EcoConcrete Student Competition"]
["Summary"]
["Developed by ACI Sherbrooke Student Chapter"]
["Table 1 : Base- and Alternative-Case Scenarios charcateristics"]
["Mix characteristics",null,"Unit","Base-Case Scenario","Alternative-Case Scenario","Note"]
[null,"Density","kg/m³",2460,2460]
[null,"Total binder content (b)","kg/m³",400,400,"bBCS = bACS"]
[null,"Water-to-binder ratio (w/b)",null,0.4,0.4,"w/bBCS = w/bACS = 0.40"]
[null,"Cement substitution rate","%",0,0.4,"Maximum 40%"]
["Table 2 : Details of the potential environmental impact scores and variation"]
["Impacts categories",null,"Units","Base-Case Scenario","Alternative-Case Scenario","Potential environmental impact reduction"]
[null,"Global warming","kg CO2 eq",368.30926402400002,262.49391272800005,{"$f":"IF(AND(D12<>\"\",E12<>\"\"),(D12-E12)/D12,\"\")","v":0.2873002708101981},1,{"$f":"G12-F12","v":0.71269972918980184}]
[null,"Carcinogenic","CTUh",5.2197400000000004E-6,4.5479640000000002E-6,{"$f":"IF(AND(D13<>\"\",E13<>\"\"),(D13-E13)/D13,\"\")","v":0.12869913060803798},1,{"$f":"G13-F13","v":0.87130086939196205}]
[null,"Ozone depletion","kg CFC-11 eq",1.587023297424E-5,1.159270973424E-5,0.26953121904027016,1,0.73046878095972989]
[null,"Ecotoxicity","CTUe",606.35,526.27799999999991,0.13205574338253503,1,0.86794425661746499]
[null,"Fossil fuel depletion","MJ",145.71334088,102.093364528,0.29935471994923629,1,0.70064528005076365]
[null,null,null,null,"Average:",{"$f":"AVERAGE(F12:F16)","v":0.22338821675805551}]
[]
["Figure 1: Your improvements in a glance"]
[]
[]
[]
[]
[]
[]
[]
[]
[]
[]
[]
["Table 3 : Sensivity analysis and estimation of your final score"]
["Performances",null,null,"Units","Weigthing factor","Results"]
[null,"Written report",null,"%",0.25,1]
[null,"Poster presentation",null,"%",0.25,0.8]
[null,"Service life improvement",null,"%",0.25,50,60]
[null,"Environmental impact reduction",null,"%",0.25,{"$f":"F17","v":0.22338821675805551}]
[null,null,null,"Final score","/100"]

{"sheet":"Database","index":6,"n_rows":64,"n_cols":8,"rows_kept":64,"cut":false,"hidden":false,"merged":[[1,0,1,6],[4,0,6,0],[4,1,6,1],[4,7,6,7],[63,0,63,7],[62,0,62,7]]}
["EcoConcrete Student Competition"]
["Database"]
[]
[]
["Components","Unit","Potential Environmental impact",null,null,null,null,"More information"]
[null,null,"Global warming","Carcinogenic","Ozone depletion","Ecotoxicity","Fossil fuel depletion"]
[null,null,"kg CO2 eq","CTUh","kg CFC-11 eq","CTUe","MJ"]
["Materials | Data source: Ecoinvent V3.1 | US and CA dataset"]
["Portland cement (Type 1) GU","/kg",0.90300000000000002,1.0600000000000001E-8,3.6138742999999998E-8,1.19,0.33600000000000002]
["Water","/kg",1.6803615000000001E-4,1.35E-10,2.0427488999999999E-11,0.17899999999999999,1.65E-4,"Tap water"]
["Fine aggregate, manufactured","/kg",2.3600000000000001E-3,2.7299999999999999E-10,6.6299999999999999E-10,2.5700000000000001E-2,4.2300000000000003E-3,"Sand | gravel and quarry operation"]
["Gravel, crushed","/kg",3.62E-3,6.7299999999999995E-10,4.9099999999999996E-10,6.6900000000000001E-2,4.5799999999999999E-3,"Gravel, crushed | production"]
["Granulated Blast-Furnace Slag","/kg",0.39200000000000002,1.04E-8,1.6341825904000001E-8,1.1499999999999999,0.113,"19.4% of the impact of the production of pig iron (Chen et al., 2010)"]
["Coal fly ash","/kg",0.15,8.8699999999999994E-9,4.25E-9,0.76400000000000001,2.9100000000000001E-2,"12.4% of the impact of the production of 1 kwh of hard coal electricity (Chen et al., 2010)"]
["Silica fume","/kg",0.53400000000000003,4.5400000000000003E-8,4.0000000000000001E-8,4.32,0.27800000000000002,"13% of the impact of  Ferrosilicon production (Van den Heede et al, 2014)"]
["Metakaolin","/kg",0.432,1.3799999999999999E-8,1.1062091E-7,1.97,0.98]
[]
[]
[]
[]
[]
[]
["Electricity Region mix | Data source: Ecoinvent V3.1 | US and CA dataset"]
["Alaska System Coordinating Council (ASCC)","/kWh",0.82199999999999995,1.6099999999999999E-8,1.48E-7,9.5299999999999994,1.8]
["Florida Reliability Coordinating Council (FRCC)","/kWh",0.89700000000000002,2.0100000000000001E-8,1.5300000000000001E-7,9.8000000000000007,1.74]
["Midwest Reliability Organization (MRO)","/kWh",1.1399999999999999,7.1499999999999998E-8,5.2649782000000002E-8,14.3,0.30199999999999999]
["Northeast Power Coordinating Council (NPCC)","/kWh",0.43514489000000001,1.4500000000000001E-8,9.7740035999999999E-8,9.34,0.79542252999999996]
["ReliabilityFirst Corporation (RFC)","/kWh",0.80741874999999996,3.84E-8,6.9631458999999994E-8,11.2,0.30277854999999998]
["SERC Reliability Corporation (SERC)","/kWh",0.76533594000000005,3.7499999999999998E-8,7.8988584999999997E-8,11.2,0.47679027000000002]
["Southwest Power Pool, RE (SPP)","/kWh",1.1299501999999999,5.2999999999999998E-8,7.0557778000000004E-8,12.6,0.68132419]
["Texas Reliability Entity (TRE)","/kWh",0.81072865000000005,3.2800000000000003E-8,1.0119368E-7,11,1.0924199999999999]
["Western Electricity Coordinating Council (WECC)","/kWh",0.65718922000000002,3.0099999999999998E-8,7.6887824000000003E-8,10.7,0.78297680000000003]
["Rest of World (RoW)","/kWh",0.71708123000000001,2.66E-8,1.1787862E-7,12,1.0350758]
[null,"/kWh"]
[null,"/kWh"]
[null,"/kWh"]
[null,"/kWh"]
[null,"/kWh"]
[null,"/kWh"]
[null,"/kWh"]
["Thermal energy  | Data source: Ecoinvent V3.1 | US and CA dataset"]
["Alaska System Coordinating Council (ASCC)","/MJ",0.22836268000000001,4.4800000000000002E-9,4.1148345999999997E-8,2.65,0.50018459000000004]
["Florida Reliability Coordinating Council (FRCC)","/MJ",0.24917733,5.5700000000000004E-9,4.2517819999999999E-8,2.72,0.48332322999999999]
["Midwest Reliability Organization (MRO)","/MJ",0.31588822,1.99E-8,1.4624939000000001E-8,3.97,8.3828869E-2]
["Northeast Power Coordinating Council (NPCC)","/MJ",0.12087357999999999,4.0400000000000001E-9,2.7150010000000001E-8,2.6,0.2209507]
["ReliabilityFirst Corporation (RFC)","/MJ",0.22428298999999999,1.07E-8,1.9342071999999999E-8,3.12,8.4105154000000001E-2]
["SERC Reliability Corporation (SERC)","/MJ",0.21259332,1.04E-8,2.1941273999999999E-8,3.1,0.13244174]
["Southwest Power Pool, RE (SPP)","/MJ",0.31387505999999998,1.4699999999999999E-8,1.9599382999999999E-8,3.51,0.18925671999999999]
["Texas Reliability Entity (TRE)","/MJ",0.22500000000000001,9.1100000000000002E-9,2.81E-8,3.05,0.30344999]
["Western Electricity Coordinating Council (WECC)","/MJ",0.18255256,8.3600000000000001E-9,2.1357729000000001E-8,2.97,0.21749356]
["Rest of World (RoW)","/MJ",0.19918922999999999,7.3900000000000003E-9,3.2744061999999999E-8,3.32,0.28752106999999999]
[]
[]
[]
[]
[]
["Transport | Data source: Ecoinvent V3.1 | US and CA dataset"]
["Freight, lorry 16-32 tons","/tkm",0.16729727999999999,4.9300000000000001E-9,4.0470922000000001E-8,1.46,0.36249260999999999,"Transport, freight, lorry 16-32 metric ton"]
["Rail","/tkm",5.9785342999999998E-2,5.2700000000000002E-9,1.1749007E-8,0.26600000000000001,0.10481921,"Transport, freight train"]
["Waterway","/tkm",1.1546275E-2,2.6700000000000001E-10,2.4663812999999999E-9,2.2200000000000001E-2,2.1926099000000001E-2,"Transport, freight, sea, transoceanic ship"]
[]
["References"]
["C. Chen, G. Habert, Y. Bouzidi, A. Jullien, A. Ventura, LCA allocation procedure used as an incitative method for waste recycling: An application to mineral additions in concrete, Resources, Conservation and Recycling, Volume 54, Issue 12, October 2010, Pages 1231-1240"]
["Philip Van den Heede, Mathias Maes, Nele De Belie, Influence of active crack width control on the chloride penetration resistance and global warming potential of slabs made with fly ash + silica fume concrete, Construction and Building Materials, Volume 67, Part A, 30 September 2014, Pages 74-80"]

{"sheet":"Additionnal Info","index":7,"n_rows":68,"n_cols":12,"rows_kept":68,"cut":false,"hidden":true,"merged":[[20,2,20,4],[6,0,6,1],[6,2,6,4],[6,7,6,13],[8,2,8,4],[9,2,9,4],[14,2,14,4],[17,2,17,4],[19,2,19,4],[30,2,30,4],[31,2,31,4],[21,2,21,4],[22,2,22,4],[24,2,24,4],[26,2,26,4],[27,2,27,4],[28,2,28,4]]}
["Eco Concrete Student Competition"]
["Additionnal information"]
["Developped by ACI Sherbrooke Student Chapter"]
[]
[]
[]
["Category",null,"Comments",null,null,"Type","Sub-Category","Comments"]
["Cementitious Materials and fillers"]
[null,"Filler","Non reactive powder",null,null,null,"Natural","Natural product – No treatment is required for its use | Free of production inputs | Transport must be included | If any type of transformation is required, please select Main-product"]
[null,"SCM","Supplementary cementitious material",null,null,null,"Co-Product","Jointly manufactured product from a multiple products-production (e.g. Electricity and Coal fly ash)| Production inputs must be calculated using an economical allocation (see cover page or literature sheet) | Transport must be included"]
[null,"ASCM",null,null,null,null,"By-Product","Manufactured product without economical value destined for disposal (e.g. landfill) | Free of production inputs | Transport must be included | If any type of transformation is required for its use, select Co-Product to consider transformation energy"]
[null,"Natural pozzolana",null,null,null,null,"Main-Product","Main and only manufactured product from production | All production inputs must be included | Transport must be included"]
[null,"Granulated Blast-Furnace Slag",null,null,null,null,"Other (specify)"]
[null,"Coal fly ash"]
[null,"Silica fume","Alternative supplementary cementitious material",null,null,null,"Natural"]
[null,"Metakaolin",null,null,null,null,"Crushed"]
[null,"Other"]
[null,"Specify"]
["Fibers"]
[null,null,null,null,null,null,"Natural","Natural product – No treatment is required for its use | Free of production inputs | Transport must be included | If any type of transformation is required, please select Main-product"]
[null,null,null,null,null,null,"Recycled","Reuse of end-of-life product | Production inputs must include any type of transformation energy required for the use of the recycled materials (e.g. grinding) | Transport must be included"]
[null,null,null,null,null,null,"Co-Product","Jointly manufactured product from a multiple products-production (e.g. Electricity and Coal fly ash)| Production inputs must be calculated using an economical allocation (see cover page or literature sheet) | Transport must be included"]
[null,null,null,null,null,null,"By-Product","Manufactured product without economical value destined for disposal (e.g. landfill) | Free of production inputs | Transport must be included | If any type of transformation is required for its use, select Co-Product to consider transformation energy"]
[null,null,null,null,null,null,"Main-Product","Main and only manufactured product from production | All production inputs must be included | Transport must be included"]
[null,null,null,null,null,null,"Other (specify)"]
["Aggregates"]
[null,"Fine aggregates","dmax ≤ 5 mm",null,null,null,"Natural","Natural product – No treatment is required for its use | Free of production inputs | Transport must be included | If any type of transformation is required, please select Main-product"]
[null,"Coarse aggregates","dmax > 5 mm",null,null,null,"Crushed","Natural product needed to be crushed before its use as aggregates | Fixed production inputs | Gravel, crushed | Transport must be included"]
[null,"Other (specify)",null,null,null,null,"Recycled","Reuse of end-of-life product | Production inputs must include any type of transformation energy required for the use of the recycled materials (e.g. grinding) | Transport must be included"]
[null,null,null,null,null,null,"Co-Product","Jointly manufactured product from a multiple products-production (e.g. Electricity and Coal fly ash)| Production inputs must be calculated using an economical allocation (see cover page or literature sheet) | Transport must be included"]
[null,null,null,null,null,null,"By-Product","Manufactured product without economical value destined for disposal (e.g. landfill) | Free of production inputs | Transport must be included | If any type of transformation is required for its use, select Co-Product to consider transformation energy"]
[null,null,null,null,null,null,"Other (specify)"]
["Water"]
[null,"Tap water",null,null,null,null,"N/A","Preset production inputs | Water | Free of transport"]
[null,"Recycled water","No impacts",null,null,null,"N/A","Free of production inputs since no treatment is required for its use | Free of transport | If any type of transformation is required, select Main-product"]
[null,"Other (specify)",null,null,null,null,"N/A"]
["Admixtures"]
[null,"Specify",null,null,null,null,null,"Free of production inputs | Free of transport must be included | Such simplification is done since its relatively low volume in concrete"]
["Electricity country mix | Data source: Ecoinvent V3.1 | US and CA dataset"]
[]
[null,"Alaska System Coordinating Council (ASCC)"]
[null,"Florida Reliability Coordinating Council (FRCC) "]
[null,"Midwest Reliability Organization (MRO) "]
[null,"Northeast Power Coordinating Council (NPCC) "]
[null,"ReliabilityFirst Corporation (RFC) "]
[null,"SERC Reliability Corporation (SERC) "]
[null,"Southwest Power Pool, RE (SPP) "]
[null,"Texas Reliability Entity (TRE) "]
[null,"Western Electricity Coordinating Council (WECC)"]
[null,"Rest of World (RoW)"]
[]
[]
[]
[]
[null,null,null,null,null,null,null,null,null,null,null,"http://www.nerc.com/AboutNERC/keyplayers/Pages/Regional-Entities.aspx"]
["Thermal energy consumption | Data source: Ecoinvent V3 | US and CA dataset"]
[]
[null,"Biofuel","Heat, central or small-scale, other than natural gas | treatment of biogas, burned in micro gas turbine 100kWe"]
[null,"Coal","Heat, district or industrial, other than natural gas | heat production, at hard coal industrial furnace 1-10MW"]
[null,"Natural gas","Heat, district or industrial, natural gas  | market for heat, district or industrial, natural gas"]
[null,"Heavy fuel oil","Heat, district or industrial, other than natural gas | heat production, heavy fuel oil, at industrial furnace 1MW"]
[null,"Light fuel oil","Heat, district or industrial, other than natural gas | heat production, light fuel oil, at industrial furnace 1MW"]
[null,"Wood","Heat, district or industrial, other than natural gas | heat production, hardwood chips from forest, at furnace 1000kW"]
["Road transport | Data source: Ecoinvent V3 | US and CA dataset"]
[]
[null,"Freight, lorry 16-32 tons","Transport, freight, lorry 16-32 metric ton"]
[null,"Rail","Transport, freight train"]
[null,"Waterway","Transport, freight, sea, transoceanic ship"]